bitfinex-derivatives/quotes_SOLF0:USTF0_20241216
["timestamp","ask_amount","ask_price","bid_price","bid_amount"]
[1734374275582,1.22837,218.55,218.46,2.68]
[1734374275783,1.22837,218.55,218.47,4.92085447]
[1734374275982,1.22837,218.55,218.46,2.68]
[1734374276182,1.22837,218.55,218.47,4.92102079]
[1734374276390,1.22837,218.55,218.48,4.92088531]
[1734374276591,1.22837,218.55,218.46,2.68]
[1734374276787,1.22837,218.55,218.51,2.2877]
[1734374277390,1.22837,218.55,218.5,2.2878]
[1734374277391,3.51567,218.55,218.5,2.2878]
[1734374277791,2.2873,218.55,218.5,2.2878]
[1734374277985,2.2874,218.54,218.49,2.2879]
[1734374278184,39.90202075,218.57,218.46,2.68]
[1734374278590,42.18912075,218.57,218.52,2.2875]
[1734374278989,39.90202075,218.57,218.49,5.39728142]
[1734374279893,2.2874,218.54,218.49,7.68518142]
[1734374281291,1.58,218.57,218.49,5.39728142]
[1734374281591,1.58,218.57,218.46,2.68]
[1734374281786,2.68,218.56,218.46,2.68]
[1734374283096,2.68,218.56,218.47,4.92383994]
[1734374283290,1.58,218.57,218.46,2.68]
[1734374283688,1.58,218.57,218.47,4.92371899]
[1734374283894,1.5429,218.58,218.54,2.2873]
[1734374284196,1.5429,218.58,218.46,2.68]
[1734374284197,2.68,218.61,218.46,2.68]
[1734374284396,2.68,218.61,218.47,4.92300875]
[1734374284599,2.68,218.61,218.48,4.92300875]
[1734374284785,2.68,218.61,218.46,2.68]
[1734374284993,2.68,218.61,218.47,4.92308302]
[1734374285188,13.08971973,218.61,218.46,2.68]
[1734374285395,13.08971973,218.61,218.5,2.2877]
[1734374285396,2.2871,218.57,218.5,2.2877]
[1734374285591,2.2871,218.57,218.46,2.68]
[1734374285795,2.68,218.61,218.47,4.92267136]
[1734374285996,2.68,218.61,218.48,4.92267136]
[1734374286196,2.68,218.61,218.46,2.68]
[1734374286390,2.2869,218.58,218.47,4.92235851]
[1734374286595,2.68,218.61,218.48,4.92235851]
[1734374286800,2.287,218.58,218.54,2.2873]
[1734374287595,2.2872,218.56,218.53,5.60469083]
[1734374287995,2.68,218.61,218.51,2.68]
[1734374288197,13.08892087,218.61,218.46,2.68]
[1734374288393,2.2875,218.53,218.48,2.288]
[1734374288794,13.08892087,218.61,218.46,2.68]
[1734374289102,2.2873,218.55,218.5,2.2877]
[1734374290101,13.08892087,218.61,218.49,5.50034088]
[1734374290302,255.93189721,218.59,218.49,7.78824088]
[1734374290498,255.93189721,218.59,218.49,5.50034088]
[1734374290798,2.2874,218.54,218.49,5.50034088]
[1734374291203,255.93189721,218.59,218.49,5.50034088]
[1734374291497,255.93189721,218.59,218.46,2.68]
[1734374291498,255.93189721,218.59,218.47,21.24532688]
[1734374291704,255.93189721,218.59,218.41,1.5443]
[1734374291705,255.93189721,218.59,218.48,4.92089173]
[1734374291895,1.6355,218.59,218.48,5.56206713]
[1734374292092,1.6355,218.59,218.49,4.9216021]
[1734374292299,2.2871,218.57,218.5,4.9216021]
[1734374292592,254.29639721,218.6,218.5,2.68]
[1734374292798,1.5812,218.62,218.55,13.26508636]
[1734374293299,254.29639721,218.65,218.58,13.26508636]
[1734374293498,0.98701,218.66,218.58,13.26508636]
[1734374293796,3.27321,218.66,218.61,2.2866]
[1734374294196,0.98701,218.66,218.58,13.26508636]
[1734374294496,2.2863,218.65,218.6,2.2867]
[1734374294700,2.2863,218.65,218.58,13.26508636]
[1734374295102,2.2864,218.64,218.58,13.26508636]
[1734374295404,0.98701,218.66,218.58,13.26508636]
[1734374295703,2.2864,218.63,218.58,13.26508636]
[1734374296098,0.98701,218.66,218.55,15.94508636]
[1734374296304,0.98701,218.66,218.54,2.68]
[1734374296604,2.68,218.65,218.54,2.68]
[1734374297000,13.26508636,218.64,218.54,2.68]
[1734374297202,18.01268636,218.64,218.54,2.68]
[1734374297701,10.41406799,218.63,218.51,4.2069]
[1734374298097,13.26508636,218.61,218.5,2.68]
[1734374298294,13.26508636,218.61,218.35,13.26508636]
[1734374298295,13.26508636,218.61,218.46,2.2881]
[1734374298493,10.41049867,218.6,218.48,21.50715349]
[1734374298695,2.68,218.59,218.48,21.50715349]
[1734374299402,13.26508636,218.58,218.48,5.56206713]
[1734374300901,2.2879,218.5,218.48,5.56206713]
[1734374301700,2.2879,218.5,218.47,2.68]
[1734374301701,2.288,218.48,218.47,2.68]
[1734374302108,256.97639721,218.6,218.47,8.15857439]
[1734374302305,2.2876,218.53,218.49,13.26508636]
[1734374302505,10.40477416,218.59,218.52,13.26508636]
[1734374302711,254.29639721,218.6,218.52,15.94508636]
[1734374302910,254.29639721,218.6,218.52,18.23258636]
[1734374303210,316.85546641,218.64,218.52,15.94508636]
[1734374303407,2.2868,218.6,218.52,15.94508636]
[1734374303605,316.85546641,218.64,218.52,15.94508636]
[1734374304006,2.2868,218.59,218.55,13.26508636]
[1734374304203,10.40616469,218.66,218.55,13.26508636]
[1734374304609,2.2869,218.59,218.55,13.26508636]
[1734374305902,2.2869,218.59,218.53,2.2874]
[1734374305903,13.26508636,218.67,218.52,15.94508636]
[1734374306113,13.26508636,218.67,218.53,4.91872103]
[1734374306307,13.26508636,218.67,218.52,15.94508636]
[1734374306507,13.26508636,218.67,218.53,7.20545323]
[1734374306508,2.2868,218.59,218.53,7.20545323]
[1734374306809,2.2868,218.59,218.53,2.2874]
[1734374307010,13.26508636,218.67,218.53,2.2874]
[1734374307011,2.2867,218.61,218.53,2.2874]
[1734374307205,2.68,218.68,218.54,2.2873]
[1734374307403,2.68,218.68,218.54,7.20509284]
[1734374307404,13.26508636,218.67,218.54,7.20509284]
[1734374307604,2.2867,218.6,218.55,4.91734233]
[1734374307813,2.2867,218.6,218.55,2.68]
[1734374308405,2.2866,218.61,218.55,2.68]
[1734374309313,13.26508636,218.67,218.55,2.68]
[1734374309612,259.91847721,218.7,218.58,2.2869]
[1734374309911,2.2862,218.66,218.58,2.2869]
[1734374310509,2.2862,218.65,218.58,2.2869]
[1734374311312,5.62208,218.7,218.55,2.68]
[1734374311313,13.26508636,218.68,218.55,2.68]
[1734374311507,13.26508636,218.65,218.55,2.68]
[1734374312112,2.68,218.67,218.55,2.68]
[1734374312312,2.68,218.67,218.55,15.94508636]
[1734374312514,13.26508636,218.65,218.56,4.91330738]
[1734374312708,13.26508636,218.65,218.52,2.68]
[1734374312911,2.68,218.67,218.53,4.91369552]
[1734374312912,13.26508636,218.62,218.53,4.91369552]
[1734374313118,13.26508636,218.62,218.52,2.68]
[1734374313520,2.2872,218.56,218.52,2.68]
[1734374313916,4.8235,218.61,218.52,2.68]
[1734374314218,2.2871,218.58,218.52,2.68]
[1734374314417,4.8235,218.61,218.52,2.68]
[1734374315122,4.8235,218.61,218.52,15.94508636]
[1734374315123,3.2451,218.61,218.52,15.94508636]
[1734374315620,1.6094,218.61,218.53,7.20256491]
[1734374315825,1.6094,218.61,218.53,2.2874]
[1734374316114,1.6094,218.61,218.52,15.94508636]
[1734374316115,14.87448636,218.61,218.54,4.91574599]
[1734374316418,14.87448636,218.61,218.49,13.26508636]
[1734374316618,1.6094,218.61,218.52,13.26508636]
[1734374317319,1.6094,218.61,218.52,15.55258636]
[1734374317320,2.2868,218.6,218.52,15.55258636]
[1734374317519,1.6094,218.61,218.52,13.26508636]
[1734374317915,1.6094,218.61,218.53,2.2875]
[1734374317916,2.2868,218.59,218.53,2.2875]
[1734374318325,1.6094,218.61,218.53,2.2875]
[1734374319323,2.2869,218.59,218.52,13.26508636]
[1734374319522,2.2869,218.59,218.52,15.55268636]
[1734374319827,2.2869,218.59,218.51,2.68]
[1734374320122,2.2869,218.59,218.52,4.9203729]
[1734374320347,2.2869,218.59,218.51,2.68]
[1734374320520,2.2868,218.6,218.53,2.2875]
[1734374321017,13.26508636,218.64,218.56,2.2871]
[1734374321226,2.2866,218.62,218.56,2.2871]
[1734374322225,2.2864,218.64,218.57,2.287]
[1734374322422,254.29639721,218.71,218.56,13.26508636]
[1734374322723,267.56148357,218.71,218.56,13.26508636]
[1734374322923,267.56148357,218.71,218.59,13.26508636]
[1734374323126,41.42129574,218.72,218.6,2.68]
[1734374324021,2.286,218.67,218.61,2.68]
[1734374324628,13.26508636,218.71,218.61,2.68]
[1734374324826,2.2861,218.68,218.61,2.68]
[1734374325426,13.26508636,218.71,218.61,2.68]
[1734374325427,2.2863,218.66,218.61,2.68]
[1734374326222,13.26508636,218.71,218.61,2.68]
[1734374326425,2.2864,218.65,218.61,2.68]
[1734374326622,13.26508636,218.71,218.61,2.68]
[1734374326822,2.2865,218.65,218.61,2.68]
[1734374327219,13.26508636,218.71,218.61,2.68]
[1734374327620,2.2865,218.64,218.61,2.68]
[1734374329428,2.2864,218.64,218.61,2.68]
[1734374330129,2.2865,218.63,218.61,2.68]
[1734374332828,13.26508636,218.68,218.57,1.5836]
[1734374333023,13.26508636,218.68,218.55,2.88]
[1734374333024,13.26508636,218.65,218.55,2.88]
[1734374333226,13.26508636,218.65,218.46,52.32]
[1734374333227,13.26508636,218.59,218.47,4.6487]
[1734374333531,13.26508636,218.56,218.48,4.91833697]
[1734374333831,13.26508636,218.56,218.49,4.91833697]
[1734374334026,2.2875,218.54,218.46,2.88]
[1734374334231,13.26508636,218.56,218.48,5.50073046]
[1734374334936,2.288,218.5,218.48,5.50073046]
[1734374335631,2.2883,218.46,218.43,13.26508636]
[1734374335831,13.26508636,218.53,218.44,4.91954234]
[1734374336034,13.26508636,218.53,218.4,13.26508636]
[1734374336245,1.6416,218.52,218.41,4.91989987]
[1734374336435,3.2792,218.52,218.42,4.91989987]
[1734374336730,3.2792,218.52,218.41,2.88]
[1734374337128,3.2792,218.52,218.38,1.6276]
[1734374337329,13.26508636,218.47,218.15,201.9809196]
[1734374337535,13.26508636,218.47,218.35,7.79642424]
[1734374337736,13.26508636,218.47,218.36,4.91642424]
[1734374337935,13.26508636,218.47,218.33,13.26508636]
[1734374338131,13.26508636,218.47,218.35,2.88]
[1734374338337,13.26508636,218.47,218.36,2.88]
[1734374338338,2.2886,218.42,218.36,2.88]
[1734374338728,2.2884,218.44,218.36,2.88]
[1734374338934,13.26508636,218.47,218.36,2.88]
[1734374339235,13.26508636,218.47,218.35,2.88]
[1734374339436,2.2887,218.42,218.35,2.88]
[1734374339832,2.2887,218.41,218.38,5.4571557]
[1734374340038,13.26508636,218.47,218.35,2.88]
[1734374340339,2.88,218.51,218.37,5.58740201]
[1734374340533,13.26508636,218.49,218.37,5.58740201]
[1734374341136,13.26508636,218.46,218.37,5.58740201]
[1734374342149,2.2885,218.43,218.37,7.87650201]
[1734374343333,13.26508636,218.46,218.37,5.58740201]
[1734374343534,2.2886,218.42,218.37,5.58740201]
[1734374343739,13.26508636,218.46,218.37,5.58740201]
[1734374344432,13.26508636,218.46,218.37,7.87650201]
[1734374344433,2.2885,218.43,218.37,7.87650201]
[1734374344937,13.26508636,218.46,218.37,5.58740201]
[1734374345134,6.1592,218.52,218.39,13.26508636]
[1734374345330,3.2792,218.52,218.39,13.26508636]
[1734374345936,3.2792,218.52,218.37,5.58740201]
[1734374345937,2.2878,218.5,218.44,2.2884]
[1734374346239,1.5944,218.55,218.42,16.14508636]
[1734374347040,1.5944,218.55,218.47,2.288]
[1734374347338,14.85948636,218.55,218.43,1.5811]
[1734374347535,2.2876,218.52,218.43,3.8695]
[1734374347838,14.85948636,218.55,218.43,1.5811]
[1734374348136,14.85948636,218.55,218.43,2.2885]
[1734374348337,13.26508636,218.52,218.42,2.88]
[1734374348636,1.5944,218.55,218.42,16.14508636]
[1734374348637,14.85948636,218.55,218.42,16.14508636]
[1734374348833,13.26508636,218.49,218.29,1.5811]
[1734374349034,13.26508636,218.46,218.34,16.14508636]
[1734374349231,2.2889,218.4,218.34,16.14508636]
[1734374349431,13.26508636,218.46,218.34,16.14508636]
[1734374349839,2.2887,218.41,218.35,2.2892]
[1734374350033,2.2887,218.41,218.34,16.14508636]
[1734374350537,2.2886,218.42,218.36,2.2892]
[1734374351044,2.2885,218.43,218.37,7.87650201]
[1734374351538,2.2885,218.43,218.38,2.289]
[1734374351736,2.2885,218.43,218.37,5.58740201]
[1734374352135,2.2885,218.43,218.37,7.87650201]
[1734374352640,2.2886,218.42,218.37,7.87650201]
[1734374352836,2.2886,218.42,218.37,5.58740201]
[1734374353441,3.2731,218.48,218.37,5.58740201]
[1734374353636,3.2731,218.48,218.37,18.85248837]
[1734374353833,1.6662,218.48,218.37,18.85248837]
[1734374354139,2.2882,218.47,218.42,2.2886]
[1734374354532,13.26508636,218.5,218.43,2.2885]
[1734374354533,2.288,218.49,218.43,2.2885]
[1734374354837,13.26508636,218.51,218.43,2.2885]
[1734374356542,2.288,218.48,218.43,2.2885]
[1734374357051,13.26508636,218.48,218.37,5.58740201]
[1734374357540,2.2886,218.43,218.37,7.87650201]
[1734374357746,13.26508636,218.45,218.37,5.58740201]
[1734374358139,2.2886,218.42,218.37,7.87650201]
[1734374358339,13.26508636,218.45,218.37,5.58740201]
[1734374358746,13.26508636,218.45,218.38,2.2889]
[1734374358747,15.55348636,218.45,218.38,2.2889]
[1734374358943,2.2884,218.45,218.37,5.58740201]
[1734374360044,5.1682,218.47,218.4,2.2888]
[1734374360249,2.88,218.47,218.4,2.2888]
[1734374360954,2.2883,218.46,218.4,2.2888]
[1734374361248,2.88,218.47,218.41,2.2887]
[1734374362054,2.2882,218.46,218.41,2.2887]
[1734374362745,2.2882,218.46,218.37,5.58740201]
[1734374362746,2.2883,218.45,218.37,5.58740201]
[1734374362945,2.2883,218.45,218.4,2.2888]
[1734374363846,2.2883,218.45,218.41,2.2887]
[1734374364052,2.2882,218.46,218.41,2.2887]
[1734374365541,13.26508636,218.46,218.37,5.58740201]
[1734374366852,16.16508636,218.46,218.37,5.58740201]
[1734374367946,2.2887,218.42,218.37,5.58740201]
[1734374368150,16.16508636,218.46,218.37,5.58740201]
[1734374368754,2.2885,218.44,218.37,5.58740201]
[1734374369055,16.16508636,218.46,218.37,5.58740201]
[1734374369258,16.16508636,218.46,218.37,7.87650201]
[1734374369455,16.16508636,218.46,218.37,5.58740201]
[1734374369853,2.2887,218.41,218.37,5.58740201]
[1734374370052,16.16508636,218.46,218.37,5.58740201]
[1734374370857,16.16508636,218.46,218.38,2.2889]
[1734374370858,2.2885,218.43,218.38,2.2889]
[1734374371059,16.16508636,218.49,218.37,18.85248837]
[1734374371553,254.29639721,218.51,218.37,18.85248837]
[1734374372054,2.2879,218.49,218.42,2.2885]
[1734374372253,254.29639721,218.51,218.41,2.9]
[1734374373251,13.26508636,218.52,218.41,2.9]
[1734374373252,1.6495,218.53,218.43,13.26508636]
[1734374373554,2.2875,218.52,218.43,13.26508636]
[1734374373858,1.6495,218.53,218.43,13.26508636]
[1734374374054,1.6495,218.53,218.48,2.2879]
[1734374374256,3.52322,218.54,218.48,2.2879]
[1734374375355,1.23592,218.54,218.47,2.9]
[1734374376353,13.26508636,218.58,218.47,2.9]
[1734374377759,1.6701,218.6,218.47,2.9]
[1734374377760,13.26508636,218.55,218.47,2.9]
[1734374377965,13.26508636,218.52,218.42,2.9]
[1734374378155,16.16508636,218.55,218.43,13.26508636]
[1734374378357,2.2874,218.53,218.47,2.288]
[1734374378752,13.26508636,218.55,218.47,2.288]
[1734374379255,2.2872,218.56,218.5,2.2877]
[1734374379451,2.2872,218.56,218.46,16.16508636]
[1734374379656,2.2872,218.56,218.47,4.91956993]
[1734374379851,2.2872,218.56,218.48,4.91956993]
[1734374380056,2.2872,218.55,218.5,2.2877]
[1734374380255,13.26508636,218.59,218.5,2.2877]
[1734374380457,8.67235032,218.62,218.5,13.26508636]
[1734374380458,16.56378636,218.62,218.5,13.26508636]
[1734374380658,17.15168636,218.62,218.56,2.2871]
[1734374380853,17.15168636,218.62,218.53,2.9]
[1734374380854,3.8866,218.62,218.53,2.9]
[1734374381355,1.06618,218.63,218.53,2.9]
[1734374381356,1.06618,218.63,218.56,13.26508636]
[1734374382261,1.06618,218.63,218.58,2.2869]
[1734374384857,1.06618,218.63,218.56,13.26508636]
[1734374385359,1.06618,218.63,218.59,13.26508636]
[1734374385666,1.06618,218.63,218.61,2.2866]
[1734374386561,1.06618,218.63,218.62,15.55158636]
[1734374387559,1.06618,218.63,218.62,2.2865]
[1734374387868,575.72076362,218.82,218.66,2.286]
[1734374387869,13.26508636,218.77,218.66,2.286]
[1734374388159,4.5475,218.78,218.66,2.9]
[1734374388365,1.6475,218.78,218.69,2.2857]
[1734374388665,1.6475,218.78,218.66,4.4777]
[1734374388864,2.285,218.76,218.66,4.4777]
[1734374389061,2.285,218.76,218.69,2.2856]
[1734374389557,13.26508636,218.77,218.66,4.4777]
[1734374389765,2.2852,218.74,218.67,2.2859]
[1734374390161,2.2856,218.71,218.64,2.2862]
[1734374390365,2.2856,218.71,218.59,4.88553462]
[1734374390366,13.26508636,218.71,218.59,1.6317]
[1734374390564,13.26508636,218.71,218.6,2.92]
[1734374390757,2.2859,218.67,218.61,2.2866]
[1734374390963,13.26508636,218.71,218.6,2.92]
[1734374391462,13.26508636,218.74,218.61,13.26508636]
[1734374391658,13.26508636,218.77,218.64,13.26508636]
[1734374392166,13.26508636,218.77,218.65,5.55031097]
[1734374392361,13.26508636,218.77,218.66,2.92]
[1734374392564,1.6475,218.78,218.67,13.26508636]
[1734374393061,3.9324,218.78,218.67,13.26508636]
[1734374393364,1.6475,218.78,218.68,1.6871]
[1734374393561,1.6475,218.78,218.7,13.26508636]
[1734374393766,13.26508636,218.83,218.7,13.26508636]
[1734374393955,2.2847,218.78,218.71,2.2853]
[1734374394157,13.26508636,218.83,218.72,2.92]
[1734374394561,13.26508636,218.83,218.75,2.2849]
[1734374394562,2.2843,218.81,218.75,2.2849]
[1734374395466,2.2843,218.8,218.75,2.2849]
[1734374395662,13.26508636,218.83,218.76,2.2847]
[1734374395870,13.26508636,218.86,218.74,13.26508636]
[1734374396867,3.3193,218.87,218.74,13.26508636]
[1734374397261,3.3193,218.87,218.77,13.26508636]
[1734374397465,3.3193,218.87,218.78,2.92]
[1734374398261,2.2839,218.85,218.8,2.2842]
[1734374400468,3.3193,218.87,218.78,2.92]
[1734374400970,5.6029,218.87,218.82,2.2841]
[1734374401270,38.27364314,219.01,218.83,13.26508636]
[1734374401473,52.3,219.02,218.87,2.2836]
[1734374401474,2.2831,218.93,218.87,2.2836]
[1734374401665,1.6924,218.97,218.84,2.92]
[1734374401866,1.6924,218.97,218.86,13.26508636]
[1734374402873,1.6924,218.97,218.89,13.26508636]
[1734374403096,1.6924,218.97,218.9,2.92]
[1734374404263,3.3875,219.0,218.9,2.92]
[1734374404665,2.2825,218.98,218.92,2.2831]
[1734374404870,2.2825,218.98,218.9,16.18508636]
[1734374405366,2.2825,218.98,218.93,2.283]
[1734374405771,2.2825,218.98,218.9,16.18508636]
[1734374406173,2.2825,218.98,218.91,2.2831]
[1734374406576,36.67075685,219.03,218.9,16.18508636]
[1734374406773,2.2823,219.0,218.94,2.2829]
[1734374406971,2.2823,219.0,218.9,16.18508636]
[1734374407569,2.2823,219.0,218.94,2.2829]
[1734374407769,2.2823,219.0,218.93,13.26508636]
[1734374408566,1.5985,219.03,218.93,13.26508636]
[1734374408869,2.2819,219.04,218.96,13.26508636]
[1734374409075,17.74128636,219.1,218.97,2.92]
[1734374409274,2.2819,219.04,218.98,2.92]
[1734374409770,2.282,219.03,218.98,2.92]
[1734374409994,2.282,219.03,218.91,4.8406]
[1734374409995,13.26508636,219.07,218.93,13.26508636]
[1734374410167,13.26508636,219.04,218.91,4.5516]
[1734374410366,16.18508636,219.04,218.91,4.5516]
[1734374410572,2.2826,218.97,218.91,4.5516]
[1734374411074,16.18508636,219.04,218.91,4.5516]
[1734374411879,2.2826,218.97,218.91,6.8348]
[1734374412579,2.2826,218.97,218.91,5.2032]
[1734374412778,2.2826,218.97,218.92,13.26508636]
[1734374413279,2.2826,218.97,218.92,15.54818636]
[1734374413878,16.18508636,219.04,218.92,15.54818636]
[1734374414173,2.2825,218.98,218.92,15.54818636]
[1734374414679,13.26508636,219.04,218.93,2.2829]
[1734374415274,2.2824,219.0,218.92,13.26508636]
[1734374415471,2.2824,219.0,218.94,2.2828]
[1734374416775,2.2824,219.0,218.92,13.26508636]
[1734374416983,16.18508636,219.07,218.95,13.26508636]
[1734374417176,2.92,219.09,218.95,13.26508636]
[1734374417371,2.282,219.03,218.97,2.2825]
[1734374417880,2.92,219.09,218.96,2.92]
[1734374418081,2.2818,219.05,218.96,2.92]
[1734374418582,2.2818,219.05,218.99,2.2823]
[1734374419982,14.82128636,219.1,218.96,2.92]
[1734374420276,13.26508636,219.06,218.96,2.92]
[1734374420675,13.26508636,219.06,218.96,1.14491533]
[1734374421372,13.26508636,219.06,218.96,3.42751533]
[1734374421572,2.282,219.03,218.96,3.42751533]
[1734374421873,2.282,219.03,218.96,1.14491533]
[1734374422471,2.2817,219.06,218.96,1.14491533]
[1734374423079,2.2817,219.06,218.99,2.2823]
[1734374423279,2.2817,219.06,218.96,1.14491533]
[1734374423681,2.2817,219.06,218.99,2.2824]
[1734374423883,2.2818,219.05,218.99,2.2824]
[1734374424375,2.2815,219.08,218.98,13.26508636]
[1734374424579,267.56148357,219.16,219.01,13.26508636]
[1734374424778,13.26508636,219.16,219.04,13.26508636]
[1734374424977,13.26508636,219.16,219.05,2.82]
[1734374425281,2.281,219.12,219.07,2.2815]
[1734374425481,13.26508636,219.16,219.07,2.2815]
[1734374425677,3.1782,219.18,219.05,2.82]
[1734374426080,13.26508636,219.16,219.05,2.82]
[1734374426879,13.26508636,219.1,219.02,5.58746947]
[1734374427279,13.26508636,219.1,219.0,2.82]
[1734374427280,13.26508636,219.07,218.92,1.5791]
[1734374427477,13.26508636,219.07,218.94,5.1029]
[1734374427478,2.2823,219.0,218.94,5.1029]
[1734374427777,2.2823,219.0,218.94,2.82]
[1734374428174,13.26508636,219.04,218.96,5.49823584]
[1734374428778,5.0678,219.09,218.96,5.49823584]
[1734374428981,18.33288636,219.09,218.96,5.49823584]
[1734374429175,13.26508636,219.06,218.96,5.49823584]
[1734374430581,2.2817,219.06,218.98,2.2824]
[1734374430782,18.33288636,219.09,218.96,5.49823584]
[1734374430982,21.15288636,219.09,218.97,2.82]
[1734374431182,21.15288636,219.09,219.0,2.2822]
[1734374431478,21.15288636,219.09,218.97,16.08508636]
[1734374431479,18.33288636,219.09,218.97,16.08508636]
[1734374432081,2.2816,219.06,218.97,16.08508636]
[1734374432391,5.0678,219.09,219.0,13.26508636]
[1734374432681,2.2815,219.08,219.03,2.2819]
[1734374433078,5.49704847,219.22,219.03,2.2819]
[1734374433079,5.49704847,219.22,219.04,2.82]
[1734374433282,2.82,219.2,219.06,13.26508636]
[1734374433789,2.2809,219.14,219.09,2.2813]
[1734374434689,2.82,219.2,219.06,13.26508636]
[1734374434887,2.2807,219.15,219.07,4.85401259]
[1734374435090,2.82,219.2,219.08,4.85401259]
[1734374435387,2.82,219.2,219.09,7.13804038]
[1734374435594,2.82,219.2,219.09,2.2813]
[1734374436290,2.82,219.2,219.06,13.26508636]
[1734374436291,2.2808,219.14,219.06,13.26508636]
[1734374436489,2.82,219.2,219.07,4.85508676]
[1734374436686,2.82,219.2,219.08,4.86054239]
[1734374436887,2.82,219.2,219.09,4.86054239]
[1734374437183,2.82,219.2,219.1,4.86421435]
[1734374437383,18.09888636,219.21,219.09,13.26508636]
[1734374437384,18.09888636,219.21,219.11,4.86421435]
[1734374437580,2.2805,219.18,219.09,13.26508636]
[1734374437781,18.09888636,219.21,219.1,7.68261816]
[1734374437986,18.09888636,219.21,219.11,4.86261816]
[1734374438181,18.09888636,219.21,219.12,4.86261816]
[1734374438387,2.2806,219.17,219.11,2.2811]
[1734374438590,2.2806,219.17,219.12,4.86660536]
[1734374438889,3.2537,219.21,219.14,2.2808]
[1734374439089,1.6624,219.21,219.12,13.26508636]
[1734374439388,1.6624,219.21,219.13,4.86654138]
[1734374439586,1.6624,219.21,219.14,4.86900018]
[1734374439889,1.6624,219.21,219.15,4.86900018]
[1734374440092,1.6624,219.21,219.16,4.8675637]
[1734374440295,2.2802,219.2,219.17,4.87046415]
[1734374440485,2.2802,219.2,219.12,13.26508636]
[1734374440685,2.2802,219.2,219.13,4.86939043]
[1734374440895,2.2802,219.2,219.14,7.15009043]
[1734374441092,2.2802,219.2,219.15,4.86939043]
[1734374441293,2.2802,219.2,219.16,4.86939043]
[1734374441494,1.6624,219.21,219.14,2.2807]
[1734374441695,2.2803,219.19,219.15,4.87291811]
[1734374441895,2.2803,219.19,219.16,4.87291811]
[1734374442096,2.2804,219.18,219.12,13.26508636]
[1734374442295,2.2804,219.18,219.13,7.15722338]
[1734374442596,2.2804,219.18,219.14,4.87632338]
[1734374442793,2.2804,219.18,219.15,4.87632338]
[1734374442988,2.2804,219.18,219.12,13.26508636]
[1734374443187,2.2804,219.18,219.13,4.87451799]
[1734374443394,2.2804,219.18,219.14,4.87451799]
[1734374443589,2.2804,219.18,219.15,4.87451799]
[1734374443895,1.5796,219.26,219.15,15.54568636]
[1734374444101,1.5796,219.26,219.16,7.69628709]
[1734374444395,2.2801,219.21,219.16,2.82]
[1734374444596,1.5796,219.26,219.16,2.82]
[1734374444899,1.5796,219.26,219.17,4.87811331]
[1734374445095,1.5796,219.26,219.16,2.82]
[1734374445297,1.5796,219.26,219.17,4.87811238]
[1734374445598,1.5796,219.26,219.16,2.82]
[1734374445801,1.5796,219.26,219.17,4.87584668]
[1734374445994,1.5796,219.26,219.16,2.82]
[1734374446191,1.5796,219.26,219.18,13.26508636]
[1734374446497,2.2799,219.23,219.18,13.26508636]
[1734374446793,1.5796,219.26,219.19,4.87536874]
[1734374446998,1.5796,219.26,219.16,2.82]
[1734374447299,1.5796,219.26,219.17,4.87505575]
[1734374447600,1.5796,219.26,219.16,2.82]
[1734374448298,1.5796,219.26,219.08,1.5933]
[1734374448299,2.2804,219.18,219.13,2.9]
[1734374448492,13.26508636,219.25,219.13,2.9]
[1734374449393,2.28,219.22,219.13,2.9]
[1734374449594,13.26508636,219.25,219.13,2.9]
[1734374449802,13.26508636,219.25,219.13,5.1808]
[1734374450398,2.2804,219.19,219.13,5.1808]
[1734374450897,2.2805,219.17,219.13,2.9]
[1734374451096,13.26508636,219.25,219.13,2.9]
[1734374451492,13.26508636,219.25,219.13,5.1808]
[1734374452398,4.4796,219.26,219.14,2.2808]